[Event "European Online Club-ch-F 2021"]
[Site "Online"]
[Date "2021.03.27"]
[Round "3.4"]
[White "Puittinen, Mika"]
[Black "Fridman, Daniel"]
[Result "0-1"]
[ECO "A09"]
[WhiteElo "2007"]
[BlackElo "2601"]
[Annotator "ChessBase"]
[PlyCount "70"]
[EventDate "2021.03.27"]
[EventType "team-tourn"]
[EventCountry "NET"]
[SourceTitle "playchess.com"]
[Source "ChessBase"]
[SourceQuality "1"]
[TimeControl "900+5"]

1. c4 {[%emt 0:00:00]} e6 {[%emt 0:00:20]} 2. g3 {[%emt 0:00:06]} d5 {[%emt 0:00:03]} 3. Bg2 {[%emt 0:00:03]} Nf6 {[%emt 0:00:02]} 4. Nf3 {[%emt 0:00:02]} d4 {[%emt 0:00:02]} 5. d3 {[%emt 0:00:29]} c5 {[%emt 0:00:10]} 6. O-O {[%emt 0:00:07]} Nc6 {[%emt 0:00:03]} 7. e3 {[%emt 0:01:39]} Bd6 {[%emt 0:00:05]} 8. b4 {[%emt 0:02:10]} dxe3 {[%emt 0:02:40]} 9. fxe3 {[%emt 0:00:59]} Nxb4 {[%emt 0:00:10]} 10. d4 {[%emt 0:00:38]} O-O {[%emt 0:00:09]} 11. Nc3 {[%emt 0:00:15]} Nc6 {[%emt 0:00:20]} 12. Rb1 {[%emt 0:00:31]} h6 {[%emt 0:01:59]} 13. Bb2 {[%emt 0:02:41]} Re8 {[%emt 0:00:24]} 14. Kh1 {[%emt 0:02:28]} Rb8 {[%emt 0:00:28]} 15. e4 {[%emt 0:00:32]} cxd4 {[%emt 0:00:57]} 16. Nxd4 {[%emt 0:00:03]} Be5 {[%emt 0:02:32]} 17. Ncb5 {[%emt 0:01:36]} Nxd4 {[%emt 0:00:39]} 18. Nxd4 {[%emt 0:00:07]} Bd7 {[%emt 0:00:47]} 19. Nb5 {[%emt 0:00:40]} Bxb2 {[%emt 0:00:16]} 20. Rxb2 {[%emt 0:00:02]} Bxb5 {[%emt 0:00:02]} 21. Rxb5 {[%emt 0:00:26]} Qxd1 {[%emt 0:01:06]} 22. Rxd1 {[%emt 0:00:03]} Rbd8 {[%emt 0:00:01]} 23. Re1 {[%emt 0:00:31]} b6 {[%emt 0:00:08]} 24. e5 {[%emt 0:00:10]} Nd7 {[%emt 0:00:31]} 25. Bc6 {[%emt 0:00:04]} Rf8 {[%emt 0:00:03]} 26. a4 {[%emt 0:00:14]} Nc5 {[%emt 0:01:33]} 27. a5 {[%emt 0:00:05]} Rc8 {[%emt 0:00:40]} 28. Bf3 {[%emt 0:00:06]} bxa5 {[%emt 0:00:06]} 29. Rxa5 {[%emt 0:00:02]} Rc7 {[%emt 0:00:02]} 30. Rea1 {[%emt 0:00:05]} a6 {[%emt 0:00:02]} 31. Rd1 {[%emt 0:00:11]} Rb8 {[%emt 0:00:04]} 32. Rd6 {[%emt 0:00:06]} Rb4 {[%emt 0:00:05]} 33. Rd4 {[%emt 0:00:24]} Kh7 {[%emt 0:00:16]} 34. Ra2 {[%emt 0:00:05]} a5 {[%emt 0:00:18]} 35. Rf4 {[%emt 0:00:10]} a4 {[%emt 0:00:05]} 0-1

[Event "European Online Club-ch-F 2021"]
[Site "Online"]
[Date "2021.03.27"]
[Round "3.7"]
[White "Kazakouski, Valery"]
[Black "Van Wely, Loek"]
[Result "1/2-1/2"]
[ECO "E04"]
[WhiteElo "2476"]
[BlackElo "2620"]
[Annotator "ChessBase"]
[PlyCount "90"]
[EventDate "2021.03.27"]
[EventType "team-tourn"]
[EventCountry "NET"]
[SourceTitle "playchess.com"]
[Source "ChessBase"]
[SourceQuality "1"]
[TimeControl "900+5"]

1. d4 {[%emt 0:00:00]} Nf6 {[%emt 0:00:05]} 2. Nf3 {[%emt 0:00:02]} e6 {[%emt 0:00:29]} 3. c4 {[%emt 0:00:02]} d5 {[%emt 0:00:02]} 4. g3 {[%emt 0:00:04]} dxc4 {[%emt 0:00:08]} 5. Bg2 {[%emt 0:00:02]} c5 {[%emt 0:00:06]} 6. O-O {[%emt 0:00:06]} Nc6 {[%emt 0:00:03]} 7. dxc5 {[%emt 0:01:08]} Qxd1 {[%emt 0:00:05]} 8. Rxd1 {[%emt 0:00:04]} Bxc5 {[%emt 0:00:01]} 9. Nfd2 {[%emt 0:00:36]} Na5 {[%emt 0:03:52]} 10. Na3 {[%emt 0:00:11]} Bxa3 {[%emt 0:00:09]} 11. bxa3 {[%emt 0:00:02]} Bd7 {[%emt 0:00:16]} 12. Bb2 {[%emt 0:00:26]} Bc6 {[%emt 0:01:07]} 13. Bxc6+ {[%emt 0:01:23]} Nxc6 {[%emt 0:00:00]} 14. Nxc4 {[%emt 0:00:02]} O-O {[%emt 0:00:08]} 15. Nd6 {[%emt 0:01:25]} Rab8 {[%emt 0:01:11]} 16. Bxf6 {[%emt 0:01:07]} gxf6 {[%emt 0:00:02]} 17. Ne4 {[%emt 0:00:01]} Kg7 {[%emt 0:00:09]} 18. Rd7 {[%emt 0:00:22]} Rfd8 {[%emt 0:00:22]} 19. Rad1 {[%emt 0:00:41]} b6 {[%emt 0:01:05]} 20. f4 {[%emt 0:00:46]} Kg6 {[%emt 0:02:05]} 21. Kf2 {[%emt 0:01:49]} h6 {[%emt 0:00:32]} 22. g4 {[%emt 0:01:26]} Rxd7 {[%emt 0:00:50]} 23. Rxd7 {[%emt 0:00:03]} f5 {[%emt 0:00:02]} 24. gxf5+ {[%emt 0:01:08]} Kxf5 {[%emt 0:00:00]} 25. Kf3 {[%emt 0:00:37]} Kg6 {[%emt 0:00:04]} 26. e3 {[%emt 0:00:31]} Rd8 {[%emt 0:00:20]} 27. Rc7 {[%emt 0:00:41]} Na5 {[%emt 0:00:04]} 28. Ke2 {[%emt 0:00:04]} a6 {[%emt 0:01:26]} 29. Nd2 {[%emt 0:00:08]} b5 {[%emt 0:00:12]} 30. Ra7 {[%emt 0:00:15]} Rd6 {[%emt 0:00:05]} 31. Nf3 {[%emt 0:00:01]} Nc4 {[%emt 0:00:06]} 32. Nh4+ {[%emt 0:00:26]} Kf6 {[%emt 0:00:06]} 33. Nf3 {[%emt 0:00:01]} Kg6 {[%emt 0:01:10]} 34. a4 {[%emt 0:00:06]} f6 {[%emt 0:00:07]} 35. axb5 {[%emt 0:00:10]} axb5 {[%emt 0:00:00]} 36. Nd4 {[%emt 0:00:02]} Rb6 {[%emt 0:00:23]} 37. Re7 {[%emt 0:00:58]} e5 {[%emt 0:00:11]} 38. f5+ {[%emt 0:00:01]} Kh5 {[%emt 0:00:04]} 39. Ne6 {[%emt 0:00:18]} Ra6 {[%emt 0:00:07]} 40. Rg7 {[%emt 0:00:34]} Rxa2+ {[%emt 0:00:11]} 41. Kf3 {[%emt 0:00:15]} Nd2+ {[%emt 0:00:16]} 42. Kg3 {[%emt 0:00:05]} Nf1+ {[%emt 0:00:17]} 43. Kf3 {[%emt 0:00:01]} Nd2+ {[%emt 0:00:08]} 44. Kg3 {[%emt 0:00:02]} Nf1+ {[%emt 0:00:14]} 45. Kf3 {[%emt 0:00:01]} Nd2+ {[%emt 0:00:11]} 1/2-1/2

[Event "European Online Club-ch-F 2021"]
[Site "Online"]
[Date "2021.03.27"]
[Round "3.8"]
[White "Hamdouchi, Hicham"]
[Black "Meribanov, Vitaly"]
[Result "1-0"]
[ECO "B23"]
[WhiteElo "2561"]
[BlackElo "2406"]
[Annotator "ChessBase"]
[PlyCount "53"]
[EventDate "2021.03.27"]
[EventType "team-tourn"]
[EventCountry "NET"]
[SourceTitle "playchess.com"]
[Source "ChessBase"]
[SourceQuality "1"]
[TimeControl "900+5"]

1. e4 {[%emt 0:00:00]} c5 {[%emt 0:00:09]} 2. Nc3 {[%emt 0:00:04]} Nc6 {[%emt 0:00:02]} 3. Bb5 {[%emt 0:00:02]} Nd4 {[%emt 0:00:02]} 4. Nf3 {[%emt 0:00:03]} Nxb5 {[%emt 0:00:14]} 5. Nxb5 {[%emt 0:00:02]} a6 {[%emt 0:00:02]} 6. Nc3 {[%emt 0:00:02]} e6 {[%emt 0:00:03]} 7. O-O {[%emt 0:00:04]} Be7 {[%emt 0:00:11]} 8. d4 {[%emt 0:00:18]} cxd4 {[%emt 0:00:38]} 9. Qxd4 {[%emt 0:00:10]} d6 {[%emt 0:02:23]} 10. Qxg7 {[%emt 0:00:31]} Bf6 {[%emt 0:00:08]} 11. Qg3 {[%emt 0:00:06]} Ne7 {[%emt 0:00:09]} 12. Qf4 {[%emt 0:02:08]} Ng6 {[%emt 0:00:16]} 13. Qh6 {[%emt 0:00:53]} b5 {[%emt 0:00:30]} 14. Bg5 {[%emt 0:00:46]} Bb7 {[%emt 0:00:14]} 15. a3 {[%emt 0:00:52]} Rc8 {[%emt 0:01:53]} 16. Rfe1 {[%emt 0:02:01]} Rc5 {[%emt 0:00:48]} 17. h4 {[%emt 0:01:06]} a5 {[%emt 0:02:06]} 18. Re2 {[%emt 0:02:20]} Rg8 {[%emt 0:02:27]} 19. Rd1 {[%emt 0:01:12]} b4 {[%emt 0:01:32]} 20. Na4 {[%emt 0:00:22]} Rc4 {[%emt 0:00:13]} 21. axb4 {[%emt 0:02:09]} Rxe4 {[%emt 0:01:25]} 22. Red2 {[%emt 0:01:02]} Bxg5 {[%emt 0:01:12]} 23. hxg5 {[%emt 0:00:04]} Rxb4 {[%emt 0:00:07]} 24. Rxd6 {[%emt 0:00:07]} Qc7 {[%emt 0:00:02]} 25. Qh2 {[%emt 0:00:22]} Rxa4 {[%emt 0:00:12]} 26. Rxe6+ {[%emt 0:00:06]} fxe6 {[%emt 0:00:06]} 27. Qxc7 {[%emt 0:00:03]} 1-0

[Event "European Online Club-ch-F 2021"]
[Site "Online"]
[Date "2021.03.27"]
[Round "3.9"]
[White "Pechac, Jergus"]
[Black "Gorodetzky, Matan"]
[Result "0-1"]
[ECO "D32"]
[WhiteElo "2507"]
[BlackElo "2253"]
[Annotator "ChessBase"]
[PlyCount "22"]
[EventDate "2021.03.27"]
[EventType "team-tourn"]
[EventCountry "NET"]
[SourceTitle "playchess.com"]
[Source "ChessBase"]
[SourceQuality "1"]
[TimeControl "900+5"]

1. d4 {[%emt 0:00:00]} d5 {[%emt 0:00:03]} 2. c4 {[%emt 0:00:05]} e6 {[%emt 0:00:02]} 3. Nc3 {[%emt 0:00:02]} c5 {[%emt 0:00:02]} 4. cxd5 {[%emt 0:00:12]} exd5 {[%emt 0:00:02]} 5. Nf3 {[%emt 0:00:12]} cxd4 {[%emt 0:00:05]} 6. Nxd4 {[%emt 0:00:14]} Nf6 {[%emt 0:00:04]} 7. g3 {[%emt 0:00:49]} Bc5 {[%emt 0:00:20]} 8. Bg2 {[%emt 0:00:23]} Qb6 {[%emt 0:00:18]} 9. e3 {[%emt 0:00:52]} Bg4 {[%emt 0:00:35]} 10. Nxd5 {[%emt 0:01:25]} Bb4+ {[%emt 0:02:16]} 11. Qd2 {[%emt 0:01:00]} Bxd2+ {[%emt 0:00:28]} 0-1

[Event "European Online Club-ch-F 2021"]
[Site "Online"]
[Date "2021.03.27"]
[Round "3.10"]
[White "Katkov, Michelle"]
[Black "Zwardon, Vojtech"]
[Result "0-1"]
[ECO "B22"]
[WhiteElo "2078"]
[BlackElo "2466"]
[Annotator "ChessBase"]
[PlyCount "102"]
[EventDate "2021.03.27"]
[EventType "team-tourn"]
[EventCountry "NET"]
[SourceTitle "playchess.com"]
[Source "ChessBase"]
[SourceQuality "1"]
[TimeControl "900+5"]

1. e4 {[%emt 0:00:00]} c5 {[%emt 0:00:02]} 2. c3 {[%emt 0:00:04]} Nf6 {[%emt 0:00:02]} 3. e5 {[%emt 0:00:01]} Nd5 {[%emt 0:00:02]} 4. d4 {[%emt 0:00:03]} cxd4 {[%emt 0:00:00]} 5. cxd4 {[%emt 0:00:02]} d6 {[%emt 0:00:03]} 6. Nf3 {[%emt 0:00:01]} Nc6 {[%emt 0:00:02]} 7. Bc4 {[%emt 0:00:03]} Be6 {[%emt 0:00:01]} 8. Qb3 {[%emt 0:00:24]} dxe5 {[%emt 0:00:07]} 9. Qxb7 {[%emt 0:00:19]} Qc8 {[%emt 0:01:39]} 10. Qxc8+ {[%emt 0:02:19]} Rxc8 {[%emt 0:00:00]} 11. Bb5 {[%emt 0:00:36]} Bd7 {[%emt 0:00:38]} 12. O-O {[%emt 0:00:20]} e4 {[%emt 0:00:16]} 13. Bxc6 {[%emt 0:00:05]} Rxc6 {[%emt 0:00:07]} 14. Ne5 {[%emt 0:00:05]} Rc2 {[%emt 0:00:12]} 15. Na3 {[%emt 0:00:07]} Rc8 {[%emt 0:00:05]} 16. Re1 {[%emt 0:00:59]} Bf5 {[%emt 0:00:04]} 17. g4 {[%emt 0:00:11]} Bg6 {[%emt 0:00:04]} 18. Nxg6 {[%emt 0:00:06]} hxg6 {[%emt 0:00:00]} 19. Rxe4 {[%emt 0:00:02]} Nf6 {[%emt 0:00:01]} 20. Re2 {[%emt 0:00:15]} Nxg4 {[%emt 0:00:07]} 21. f3 {[%emt 0:00:03]} Nf6 {[%emt 0:00:04]} 22. Bg5 {[%emt 0:00:14]} Nd5 {[%emt 0:00:02]} 23. Re5 {[%emt 0:00:23]} e6 {[%emt 0:00:04]} 24. Rae1 {[%emt 0:00:09]} Kd7 {[%emt 0:00:03]} 25. Bd2 {[%emt 0:00:31]} Bxa3 {[%emt 0:00:17]} 26. bxa3 {[%emt 0:00:02]} Rc2 {[%emt 0:00:01]} 27. R1e2 {[%emt 0:00:10]} Rxa2 {[%emt 0:00:02]} 28. Bb4 {[%emt 0:00:07]} Ra1+ {[%emt 0:00:23]} 29. Re1 {[%emt 0:00:14]} Rxe1+ {[%emt 0:00:02]} 30. Rxe1 {[%emt 0:00:09]} Rc8 {[%emt 0:00:00]} 31. Bc5 {[%emt 0:00:04]} a6 {[%emt 0:00:10]} 32. Rb1 {[%emt 0:00:05]} Kc6 {[%emt 0:00:03]} 33. Kf2 {[%emt 0:00:09]} g5 {[%emt 0:01:52]} 34. Rc1 {[%emt 0:00:13]} Rh8 {[%emt 0:00:16]} 35. Kg3 {[%emt 0:00:15]} Nf4 {[%emt 0:00:03]} 36. Rc2 {[%emt 0:01:03]} Kd5 {[%emt 0:00:22]} 37. Be7 {[%emt 0:00:24]} f6 {[%emt 0:00:10]} 38. h4 {[%emt 0:01:21]} Rxh4 {[%emt 0:00:08]} 39. Rc7 {[%emt 0:00:07]} Kxd4 {[%emt 0:00:27]} 40. Bc5+ {[%emt 0:00:05]} Kd5 {[%emt 0:00:02]} 41. Be3 {[%emt 0:00:16]} Rh3+ {[%emt 0:00:26]} 42. Kf2 {[%emt 0:00:03]} Rh2+ {[%emt 0:00:01]} 43. Kg1 {[%emt 0:00:02]} Ra2 {[%emt 0:00:09]} 44. Rd7+ {[%emt 0:00:10]} Kc6 {[%emt 0:00:09]} 45. Rxg7 {[%emt 0:00:03]} Nd5 {[%emt 0:00:04]} 46. Bd4 {[%emt 0:00:17]} Rxa3 {[%emt 0:00:02]} 47. Kf2 {[%emt 0:00:06]} e5 {[%emt 0:00:01]} 48. Ba7 {[%emt 0:00:06]} Ra2+ {[%emt 0:00:03]} 49. Kg3 {[%emt 0:00:03]} Kd6 {[%emt 0:00:07]} 50. Bb8+ {[%emt 0:00:05]} Ke6 {[%emt 0:00:01]} 51. Ra7 {[%emt 0:00:07]} Nf4 {[%emt 0:00:03]} 0-1

[Event "European Online Club-ch-F 2021"]
[Site "Online"]
[Date "2021.03.27"]
[Round "3.11"]
[White "Druska, Juraj"]
[Black "Stolyarsky, Yegor"]
[Result "1/2-1/2"]
[ECO "A45"]
[WhiteElo "2495"]
[BlackElo "2063"]
[Annotator "ChessBase"]
[PlyCount "81"]
[EventDate "2021.03.27"]
[EventType "team-tourn"]
[EventCountry "NET"]
[SourceTitle "playchess.com"]
[Source "ChessBase"]
[SourceQuality "1"]
[TimeControl "900+5"]

1. d4 {[%emt 0:00:00]} Nf6 {[%emt 0:00:04]} 2. Bg5 {[%emt 0:00:02]} g6 {[%emt 0:00:02]} 3. Bxf6 {[%emt 0:00:01]} exf6 {[%emt 0:00:00]} 4. g3 {[%emt 0:00:01]} f5 {[%emt 0:00:03]} 5. e3 {[%emt 0:00:03]} d5 {[%emt 0:00:01]} 6. c4 {[%emt 0:00:02]} Bg7 {[%emt 0:00:08]} 7. Nc3 {[%emt 0:00:10]} dxc4 {[%emt 0:00:05]} 8. Qa4+ {[%emt 0:01:29]} c6 {[%emt 0:00:19]} 9. Qxc4 {[%emt 0:00:04]} O-O {[%emt 0:00:01]} 10. Bg2 {[%emt 0:00:06]} h5 {[%emt 0:00:05]} 11. h4 {[%emt 0:00:04]} Nd7 {[%emt 0:00:05]} 12. Nge2 {[%emt 0:00:37]} Nf6 {[%emt 0:00:03]} 13. Nf4 {[%emt 0:00:06]} Kh7 {[%emt 0:00:11]} 14. O-O {[%emt 0:00:24]} Ng4 {[%emt 0:00:07]} 15. Rfd1 {[%emt 0:01:35]} g5 {[%emt 0:00:42]} 16. hxg5 {[%emt 0:01:48]} Qxg5 {[%emt 0:00:00]} 17. Nce2 {[%emt 0:04:01]} h4 {[%emt 0:00:06]} 18. Qb3 {[%emt 0:00:40]} hxg3 {[%emt 0:00:32]} 19. Nxg3 {[%emt 0:00:00]} Be6 {[%emt 0:00:14]} 20. Nxe6 {[%emt 0:00:32]} fxe6 {[%emt 0:00:00]} 21. Qxe6 {[%emt 0:00:01]} Rae8 {[%emt 0:00:08]} 22. Qb3 {[%emt 0:00:37]} Nxe3 {[%emt 0:00:08]} 23. Rd3 {[%emt 0:00:34]} Nxg2 {[%emt 0:00:26]} 24. Kxg2 {[%emt 0:00:00]} f4 {[%emt 0:00:01]} 25. Rh1+ {[%emt 0:00:04]} Bh6 {[%emt 0:00:25]} 26. Qxb7+ {[%emt 0:01:22]} Re7 {[%emt 0:00:10]} 27. Qxc6 {[%emt 0:00:11]} Rf6 {[%emt 0:00:39]} 28. Qc2 {[%emt 0:01:15]} Qg6 {[%emt 0:00:02]} 29. Rc3 {[%emt 0:00:20]} Qxc2 {[%emt 0:00:26]} 30. Rxc2 {[%emt 0:00:02]} fxg3 {[%emt 0:00:04]} 31. fxg3 {[%emt 0:00:02]} Rd6 {[%emt 0:00:09]} 32. d5 {[%emt 0:00:17]} Rxd5 {[%emt 0:00:17]} 33. Rc6 {[%emt 0:01:00]} Rd2+ {[%emt 0:00:03]} 34. Kf3 {[%emt 0:00:03]} Re3+ {[%emt 0:00:06]} 35. Kg4 {[%emt 0:00:02]} Rd4+ {[%emt 0:00:08]} 36. Kf5 {[%emt 0:00:01]} Rd5+ {[%emt 0:00:27]} 37. Kg4 {[%emt 0:00:02]} Re4+ {[%emt 0:03:56]} 38. Kf3 {[%emt 0:00:04]} Re3+ {[%emt 0:00:02]} 39. Kg4 {[%emt 0:00:02]} Rd4+ {[%emt 0:00:01]} 40. Kf5 {[%emt 0:00:04]} Rd5+ {[%emt 0:00:11]} 41. Kg4 {[%emt 0:00:03]} 1/2-1/2

[Event "European Online Club-ch-F 2021"]
[Site "Online"]
[Date "2021.03.27"]
[Round "3.12"]
[White "Gleizer, Adar"]
[Black "Jablonicky, Martin"]
[Result "0-1"]
[ECO "C27"]
[WhiteElo "1833"]
[BlackElo "2298"]
[Annotator "NA"]
[PlyCount "60"]
[EventDate "2021.03.27"]
[EventType "team-tourn"]
[EventCountry "NET"]
[SourceTitle "playchess.com"]
[Source "ChessBase"]
[SourceQuality "1"]
[TimeControl "900+5"]

1. e4 {[%emt 0:00:00]} Nf6 {[%emt 0:00:05]} 2. Nc3 {[%emt 0:00:22]} e5 {[%emt 0:00:07]} 3. Bc4 {[%emt 0:00:05]} c6 {[%emt 0:00:07]} 4. d3 {[%emt 0:00:20]} d5 {[%emt 0:00:05]} 5. Bb3 {[%emt 0:00:02]} Bd6 {[%emt 0:01:30]} 6. exd5 {[%emt 0:00:26]} cxd5 {[%emt 0:00:04]} 7. Bxd5 {[%emt 0:00:08]} Nxd5 {[%emt 0:00:25]} 8. Nxd5 {[%emt 0:00:02]} Be6 {[%emt 0:00:02]} 9. Nc3 {[%emt 0:00:12]} O-O {[%emt 0:00:09]} 10. Nf3 {[%emt 0:00:25]} Nc6 {[%emt 0:00:10]} 11. Be3 {[%emt 0:00:12]} Rc8 {[%emt 0:00:31]} 12. Qe2 {[%emt 0:00:57]} Re8 {[%emt 0:00:21]} 13. O-O {[%emt 0:01:00]} Bg4 {[%emt 0:01:46]} 14. h3 {[%emt 0:00:09]} Nd4 {[%emt 0:00:51]} 15. Bxd4 {[%emt 0:00:41]} exd4 {[%emt 0:00:18]} 16. Ne4 {[%emt 0:00:02]} Bh5 {[%emt 0:00:43]} 17. Qd2 {[%emt 0:01:54]} Bxf3 {[%emt 0:00:29]} 18. gxf3 {[%emt 0:00:02]} Re6 {[%emt 0:00:30]} 19. Ng3 {[%emt 0:01:15]} Qh4 {[%emt 0:00:28]} 20. Kg2 {[%emt 0:00:15]} Rg6 {[%emt 0:00:13]} 21. Qe1 {[%emt 0:00:08]} Rxg3+ {[%emt 0:00:40]} 22. fxg3 {[%emt 0:00:09]} Rxc2+ {[%emt 0:00:02]} 23. Kg1 {[%emt 0:00:10]} Qxh3 {[%emt 0:00:11]} 24. Rf2 {[%emt 0:00:41]} Qxg3+ {[%emt 0:00:03]} 25. Kf1 {[%emt 0:00:06]} Qh3+ {[%emt 0:00:02]} 26. Kg1 {[%emt 0:00:04]} Bh2+ {[%emt 0:00:02]} 27. Kh1 {[%emt 0:00:37]} Bg3+ {[%emt 0:00:05]} 28. Kg1 {[%emt 0:00:12]} Bxf2+ {[%emt 0:00:02]} 29. Qxf2 {[%emt 0:00:04]} Rxf2 {[%emt 0:00:03]} 30. Kxf2 {[%emt 0:00:01]} Qh2+ {[%emt 0:00:01]} 0-1

[Event "European Online Club-ch-F 2021"]
[Site "Online"]
[Date "2021.03.27"]
[Round "3.13"]
[White "Gokerkan, Cem Kaan"]
[Black "Isik, Alparslan"]
[Result "1/2-1/2"]
[ECO "B22"]
[WhiteElo "2470"]
[BlackElo "2321"]
[Annotator "ChessBase"]
[PlyCount "184"]
[EventDate "2021.03.27"]
[EventType "team-tourn"]
[EventCountry "NET"]
[SourceTitle "playchess.com"]
[Source "ChessBase"]
[SourceQuality "1"]
[TimeControl "900+5"]

1. e4 {[%emt 0:00:00]} c5 {[%emt 0:00:04]} 2. c3 {[%emt 0:00:18]} d5 {[%emt 0:00:06]} 3. exd5 {[%emt 0:00:01]} Qxd5 {[%emt 0:00:01]} 4. d4 {[%emt 0:00:01]} g6 {[%emt 0:00:01]} 5. Nf3 {[%emt 0:00:04]} Bg7 {[%emt 0:00:02]} 6. dxc5 {[%emt 0:00:31]} Qxd1+ {[%emt 0:00:45]} 7. Kxd1 {[%emt 0:00:01]} Nf6 {[%emt 0:00:16]} 8. Bd3 {[%emt 0:02:46]} a5 {[%emt 0:01:54]} 9. Re1 {[%emt 0:01:10]} Nbd7 {[%emt 0:00:37]} 10. Be3 {[%emt 0:02:44]} Ng4 {[%emt 0:00:57]} 11. Nbd2 {[%emt 0:01:59]} Nxe3+ {[%emt 0:00:09]} 12. Rxe3 {[%emt 0:00:01]} Nxc5 {[%emt 0:00:06]} 13. Bb5+ {[%emt 0:00:04]} Bd7 {[%emt 0:00:01]} 14. Bxd7+ {[%emt 0:00:03]} Nxd7 {[%emt 0:00:16]} 15. Kc2 {[%emt 0:01:28]} e6 {[%emt 0:00:59]} 16. Rd1 {[%emt 0:00:04]} Ke7 {[%emt 0:00:15]} 17. Ne4 {[%emt 0:01:48]} Nf6 {[%emt 0:00:53]} 18. Nd6 {[%emt 0:00:59]} Rhd8 {[%emt 0:00:44]} 19. Nxb7 {[%emt 0:00:47]} Rxd1 {[%emt 0:00:03]} 20. Kxd1 {[%emt 0:00:01]} Rb8 {[%emt 0:00:30]} 21. Nxa5 {[%emt 0:00:11]} Rxb2 {[%emt 0:00:03]} 22. Re2 {[%emt 0:00:08]} Rxe2 {[%emt 0:00:46]} 23. Kxe2 {[%emt 0:00:01]} Nd5 {[%emt 0:00:01]} 24. Nc6+ {[%emt 0:00:53]} Kd6 {[%emt 0:00:20]} 25. Nb4 {[%emt 0:00:01]} Nxc3+ {[%emt 0:00:43]} 26. Kd3 {[%emt 0:00:03]} Kc5 {[%emt 0:03:36]} 27. a3 {[%emt 0:00:05]} Nd1 {[%emt 0:00:38]} 28. Ke2 {[%emt 0:00:04]} Nc3+ {[%emt 0:00:04]} 29. Kd3 {[%emt 0:00:02]} Nd1 {[%emt 0:00:09]} 30. Ng5 {[%emt 0:00:49]} Nxf2+ {[%emt 0:00:11]} 31. Ke2 {[%emt 0:00:06]} Ng4 {[%emt 0:00:10]} 32. Nxf7 {[%emt 0:00:03]} Nxh2 {[%emt 0:01:22]} 33. Ng5 {[%emt 0:00:02]} Kc4 {[%emt 0:00:30]} 34. Nxh7 {[%emt 0:00:19]} Bb2 {[%emt 0:00:04]} 35. Nc2 {[%emt 0:00:06]} Kc3 {[%emt 0:00:11]} 36. Kd1 {[%emt 0:00:02]} Ng4 {[%emt 0:00:05]} 37. a4 {[%emt 0:00:06]} Kd3 {[%emt 0:00:26]} 38. Ne1+ {[%emt 0:00:08]} Kc4 {[%emt 0:00:05]} 39. Nf8 {[%emt 0:00:07]} Bc3 {[%emt 0:00:06]} 40. Nxe6 {[%emt 0:00:07]} Kb4 {[%emt 0:00:04]} 41. g3 {[%emt 0:00:04]} Kxa4 {[%emt 0:00:04]} 42. Nd3 {[%emt 0:00:01]} Kb5 {[%emt 0:00:04]} 43. Ke2 {[%emt 0:00:01]} Kc6 {[%emt 0:00:05]} 44. Kf3 {[%emt 0:00:07]} Ne5+ {[%emt 0:00:03]} 45. Nxe5+ {[%emt 0:00:01]} Bxe5 {[%emt 0:00:02]} 46. g4 {[%emt 0:00:14]} Kd6 {[%emt 0:00:05]} 47. Nf8 {[%emt 0:00:01]} g5 {[%emt 0:00:03]} 48. Ke4 {[%emt 0:00:02]} Bf4 {[%emt 0:00:07]} 49. Kf5 {[%emt 0:00:03]} Ke7 {[%emt 0:00:05]} 50. Nh7 {[%emt 0:00:13]} Kf7 {[%emt 0:00:04]} 51. Nf6 {[%emt 0:00:01]} Bc1 {[%emt 0:00:05]} 52. Ne4 {[%emt 0:00:02]} Kg8 {[%emt 0:00:05]} 53. Kg6 {[%emt 0:00:02]} Kf8 {[%emt 0:00:03]} 54. Nf6 {[%emt 0:00:04]} Bd2 {[%emt 0:00:08]} 55. Nd7+ {[%emt 0:00:03]} Kg8 {[%emt 0:00:04]} 56. Nc5 {[%emt 0:00:06]} Bc1 {[%emt 0:00:05]} 57. Ne6 {[%emt 0:00:02]} Kh8 {[%emt 0:00:02]} 58. Kf7 {[%emt 0:00:05]} Kh7 {[%emt 0:00:04]} 59. Nf8+ {[%emt 0:00:03]} Kh8 {[%emt 0:00:02]} 60. Nd7 {[%emt 0:00:09]} Kh7 {[%emt 0:00:05]} 61. Nf6+ {[%emt 0:00:06]} Kh8 {[%emt 0:00:02]} 62. Ne4 {[%emt 0:00:04]} Kh7 {[%emt 0:00:03]} 63. Nc5 {[%emt 0:00:04]} Kh8 {[%emt 0:00:02]} 64. Nd3 {[%emt 0:00:01]} Bd2 {[%emt 0:00:03]} 65. Kg6 {[%emt 0:00:06]} Kg8 {[%emt 0:00:03]} 66. Ne5 {[%emt 0:00:02]} Kh8 {[%emt 0:00:05]} 67. Nf3 {[%emt 0:00:06]} Bc1 {[%emt 0:00:03]} 68. Nd4 {[%emt 0:00:02]} Kg8 {[%emt 0:00:05]} 69. Ne2 {[%emt 0:00:04]} Be3 {[%emt 0:00:03]} 70. Ng3 {[%emt 0:00:01]} Bc1 {[%emt 0:00:07]} 71. Nf5 {[%emt 0:00:04]} Kh8 {[%emt 0:00:03]} 72. Ne7 {[%emt 0:00:02]} Bd2 {[%emt 0:00:06]} 73. Nf5 {[%emt 0:00:02]} Bc1 {[%emt 0:00:02]} 74. Nh6 {[%emt 0:00:01]} Bd2 {[%emt 0:00:03]} 75. Nf7+ {[%emt 0:00:21]} Kg8 {[%emt 0:00:03]} 76. Nxg5 {[%emt 0:00:04]} Bxg5 {[%emt 0:00:04]} 77. Kxg5 {[%emt 0:00:01]} Kg7 {[%emt 0:00:02]} 78. Kf5 {[%emt 0:00:01]} Kf7 {[%emt 0:00:03]} 79. Kg5 {[%emt 0:00:01]} Kg7 {[%emt 0:00:03]} 80. Kh5 {[%emt 0:00:01]} Kh7 {[%emt 0:00:02]} 81. g5 {[%emt 0:00:01]} Kg7 {[%emt 0:00:02]} 82. g6 {[%emt 0:00:01]} Kg8 {[%emt 0:00:02]} 83. Kh6 {[%emt 0:00:01]} Kh8 {[%emt 0:00:02]} 84. Kg5 {[%emt 0:00:00]} Kg7 {[%emt 0:00:02]} 85. Kf5 {[%emt 0:00:01]} Kg8 {[%emt 0:00:02]} 86. Kf4 {[%emt 0:00:01]} Kg7 {[%emt 0:00:03]} 87. Kg5 {[%emt 0:00:01]} Kg8 {[%emt 0:00:01]} 88. Kf5 {[%emt 0:00:01]} Kg7 {[%emt 0:00:02]} 89. Kg5 {[%emt 0:00:01]} Kg8 {[%emt 0:00:02]} 90. Kf6 {[%emt 0:00:01]} Kf8 {[%emt 0:00:01]} 91. g7+ {[%emt 0:00:01]} Kg8 {[%emt 0:00:03]} 92. Ke6 {[%emt 0:00:02]} Kxg7 {[%emt 0:00:02]} 1/2-1/2